[Event "ESTCC-65 2025"]
[Site "Swidnica"]
[Date "2025.04.07"]
[Round "3.14"]
[White "Kosten, Anthony C."]
[Black "Woestmann, Hans-Joachim"]
[Result "1-0"]
[Annotator "RC"]
[ECO "A06"]
[WhiteElo "2366"]
[BlackElo "2029"]
[PlyCount "63"]
[EventDate "2025.04.05"]
[EventType "team-tourn"]
[EventCountry "POL"]
[SourceTitle "playchess.com"]
[Source "ChessBase"]
[SourceQuality "1"]
[WhiteTeam "England"]
[BlackTeam "Germany"]
[WhiteTeamCountry "ENG"]
[BlackTeamCountry "GER"]
[TimeControl "40/5400+30:1800+30"]

1. Nf3 {[%emt 0:00:03]} d5 {[%emt 0:00:24]} 2. g3 {[%emt 0:00:08]} Nf6 {[%emt 0:00:17]} 3. Bg2 {[%emt 0:00:13]} e6 {[%emt 0:00:53]} 4. O-O {[%emt 0:00:44]} Be7 {[%emt 0:02:05]} 5. c4 {[%emt 0:00:20]} O-O {[%emt 0:01:08]} 6. d3 {[%emt 0:01:12]} b6 {[%emt 0:02:20]} 7. cxd5 {[%emt 0:01:09]} Nxd5 {[%emt 0:05:25]} 8. a3 {[%emt 0:05:52]} c5 {[%emt 0:04:33]} 9. d4 {[%emt 0:07:18]} cxd4 {[%emt 0:05:36]} 10. Nxd4 {[%emt 0:00:38]} Bb7 {[%emt 0:00:26]} 11. e4 {[%emt 0:01:18]} Nf6 {[%emt 0:02:51]} 12. Nc3 {[%emt 0:00:14]} Na6 {[%emt 0:18:27]} 13. Re1 {[%emt 0:11:43]} Qd7 {[%emt 0:07:42]} 14. Bf4 {[%emt 0:08:22]} Nc7 {[%emt 0:04:04]} 15. Bxc7 {[%emt 0:12:54]} Qxc7 {[%emt 0:00:11]} 16. e5 {[%emt 0:00:08]} Nd5 {[%emt 0:12:24]} 17. Nxd5 {[%emt 0:00:18]} Bxd5 {[%emt 0:00:37]} 18. Bxd5 {[%emt 0:00:12]} exd5 {[%emt 0:00:12]} 19. Nf5 {[%emt 0:13:38]} Rfd8 {[%emt 0:03:19]} 20. Qg4 {[%emt 0:07:28]} Bf8 {[%emt 0:02:21]} 21. e6 {[%emt 0:00:34]} fxe6 {[%emt 0:00:56]} 22. Rxe6 {[%emt 0:00:16]} Re8 {[%emt 0:04:48]} 23. Rxe8 {[%emt 0:11:10]} Rxe8 {[%emt 0:00:10]} 24. Rd1 {[%emt 0:00:36]} Qc2 {[%emt 0:06:25]} 25. Rxd5 {[%emt 0:06:03]} Qxb2 {[%emt 0:01:31]} 26. Nh6+ {[%emt 0:02:19]} Kh8 {[%emt 0:00:10]} 27. Nf7+ {[%emt 0:00:19]} Kg8 {[%emt 0:00:09]} 28. Ng5 {[%emt 0:01:06]} Qb1+ {[%emt 0:07:22]} 29. Rd1 {[%emt 0:01:34]} Qg6 {[%emt 0:00:29]} 30. Qc4+ {[%emt 0:00:11]} Kh8 {[%emt 0:00:34]} 31. Nf7+ {[%emt 0:00:08]} Kg8 {[%emt 0:00:13]} 32. Nh6+ {[%emt 0:00:08]} 1-0

[Event "ESTCC-65 2025"]
[Site "Swidnica"]
[Date "2025.04.07"]
[Round "3.15"]
[White "Mueller, Gerhard"]
[Black "Mestel, A Jonathan"]
[Result "1/2-1/2"]
[Annotator "RC"]
[ECO "D01"]
[WhiteElo "2052"]
[BlackElo "2449"]
[PlyCount "48"]
[EventDate "2025.04.05"]
[EventType "team-tourn"]
[EventCountry "POL"]
[SourceTitle "playchess.com"]
[Source "ChessBase"]
[SourceQuality "1"]
[WhiteTeam "Germany"]
[BlackTeam "England"]
[WhiteTeamCountry "GER"]
[BlackTeamCountry "ENG"]
[TimeControl "40/5400+30:1800+30"]

1. d4 {[%emt 0:00:04]} Nf6 {[%emt 0:00:17]} 2. Nc3 {[%emt 0:00:07]} d5 {[%emt 0:00:47]} 3. Bg5 {[%emt 0:00:12]} Nbd7 {[%emt 0:01:26]} 4. Nf3 {[%emt 0:00:11]} g6 {[%emt 0:00:28]} 5. e3 {[%emt 0:00:15]} Bg7 {[%emt 0:00:20]} 6. Bd3 {[%emt 0:00:14]} c5 {[%emt 0:01:51]} 7. O-O {[%emt 0:00:45]} O-O {[%emt 0:00:24]} 8. Re1 {[%emt 0:00:23]} b6 {[%emt 0:03:37]} 9. e4 {[%emt 0:00:58]} dxe4 {[%emt 0:01:17]} 10. Nxe4 {[%emt 0:01:01]} cxd4 {[%emt 0:02:39]} 11. Nxd4 {[%emt 0:00:16]} Bb7 {[%emt 0:01:08]} 12. c3 {[%emt 0:00:14]} a6 {[%emt 0:08:11]} 13. Qe2 {[%emt 0:05:02]} Re8 {[%emt 0:01:15]} 14. Rad1 {[%emt 0:03:00]} Qc7 {[%emt 0:02:04]} 15. Nxf6+ {[%emt 0:07:59]} Nxf6 {[%emt 0:00:37]} 16. Bxf6 {[%emt 0:14:42]} Bxf6 {[%emt 0:01:34]} 17. Be4 {[%emt 0:00:16]} Rac8 {[%emt 0:17:15]} 18. Bxb7 {[%emt 0:04:09]} Qxb7 {[%emt 0:00:08]} 19. Rd3 {[%emt 0:00:20]} b5 {[%emt 0:10:55]} 20. Red1 {[%emt 0:02:43]} Qb6 {[%emt 0:06:43]} 21. Qe4 {[%emt 0:04:52]} Rc4 {[%emt 0:02:11]} 22. Qf3 {[%emt 0:09:53]} e5 {[%emt 0:13:02]} 23. Qe3 {[%emt 0:04:06]} e4 {[%emt 0:07:11]} 24. R3d2 {[%emt 0:12:53]} Bxd4 {[%emt 0:08:33]} 1/2-1/2

[Event "ESTCC-65 2025"]
[Site "Swidnica"]
[Date "2025.04.07"]
[Round "3.16"]
[White "Large, Peter G"]
[Black "Lange, Torsten"]
[Result "1-0"]
[Annotator "RC"]
[ECO "C13"]
[WhiteElo "2342"]
[BlackElo "2025"]
[PlyCount "41"]
[EventDate "2025.04.05"]
[EventType "team-tourn"]
[EventCountry "POL"]
[SourceTitle "playchess.com"]
[Source "ChessBase"]
[SourceQuality "1"]
[WhiteTeam "England"]
[BlackTeam "Germany"]
[WhiteTeamCountry "ENG"]
[BlackTeamCountry "GER"]
[TimeControl "40/5400+30:1800+30"]

1. e4 {[%emt 0:01:25]} e6 {[%emt 0:00:07]} 2. d4 {[%emt 0:00:07]} d5 {[%emt 0:00:06]} 3. Nc3 {[%emt 0:00:04]} Nf6 {[%emt 0:00:08]} 4. Bg5 {[%emt 0:00:41]} Be7 {[%emt 0:00:06]} 5. e5 {[%emt 0:00:08]} Ne4 {[%emt 0:00:08]} 6. Bxe7 {[%emt 0:01:14]} Nxc3 {[%emt 0:00:06]} 7. Qg4 {[%emt 0:09:02]} Qxe7 {[%emt 0:00:18]} 8. Qxg7 {[%emt 0:00:05]} Qb4 {[%emt 0:00:19]} 9. Qxh8+ {[%emt 0:00:07]} Ke7 {[%emt 0:03:32]} 10. Bd3 {[%emt 0:00:44]} Qxb2 {[%emt 0:01:36]} 11. Rd1 {[%emt 0:01:15]} Nc6 {[%emt 0:03:43]} 12. Nf3 {[%emt 0:06:52]} Nxd1 {[%emt 0:21:17]} 13. Kxd1 {[%emt 0:29:39]} Qa1+ {[%emt 0:14:09]} 14. Kd2 {[%emt 0:01:26]} Qxh1 {[%emt 0:00:31]} 15. Qf6+ {[%emt 0:01:48]} Ke8 {[%emt 0:00:37]} 16. Ng5 {[%emt 0:19:14]} Nd8 {[%emt 0:02:17]} 17. Nxh7 {[%emt 0:03:05]} Kd7 {[%emt 0:26:32]} 18. Nf8+ {[%emt 0:05:03]} Ke8 {[%emt 0:01:26]} 19. Qh8 {[%emt 0:02:00]} Ke7 {[%emt 0:13:45]} 20. Nh7 {[%emt 0:00:45]} a6 {[%emt 0:04:42]} 21. Qf8+ {[%emt 0:00:28]} 1-0

[Event "ESTCC-65 2025"]
[Site "Swidnica"]
[Date "2025.04.08"]
[Round "4.1"]
[White "Vadlja, Stjepan"]
[Black "Beilfuss, Wilfried"]
[Result "0-1"]
[Annotator "NA RC"]
[ECO "B32"]
[WhiteElo "1697"]
[BlackElo "2070"]
[PlyCount "88"]
[EventDate "2025.04.05"]
[EventType "team-tourn"]
[EventCountry "POL"]
[SourceTitle "playchess.com"]
[Source "ChessBase"]
[SourceQuality "1"]
[WhiteTeam "Croatia"]
[BlackTeam "Germany"]
[WhiteTeamCountry "CRO"]
[BlackTeamCountry "GER"]
[TimeControl "40/5400+30:1800+30"]

1. e4 {[%emt 0:00:15]} c5 {[%emt 0:00:06]} 2. Nf3 {[%emt 0:00:13]} Nc6 {[%emt 0:00:23]} 3. d4 {[%emt 0:00:21]} cxd4 {[%emt 0:00:07]} 4. Nxd4 {[%emt 0:00:15]} Qb6 {[%emt 0:01:07]} 5. Nb3 {[%emt 0:02:10]} Nf6 {[%emt 0:00:32]} 6. Be3 {[%emt 0:01:15]} Qc7 {[%emt 0:00:40]} 7. Nc3 {[%emt 0:00:46]} e6 {[%emt 0:00:30]} 8. Be2 {[%emt 0:00:42]} a6 {[%emt 0:00:44]} 9. a3 {[%emt 0:00:57]} Be7 {[%emt 0:01:01]} 10. O-O {[%emt 0:00:23]} O-O {[%emt 0:00:21]} 11. Qd2 {[%emt 0:02:55]} b5 {[%emt 0:02:26]} 12. Na2 {[%emt 0:07:13]} Nxe4 {[%emt 0:01:42]} 13. Qd3 {[%emt 0:00:48]} d5 {[%emt 0:01:13]} 14. f3 {[%emt 0:00:32]} Nf6 {[%emt 0:03:19]} 15. Qd2 {[%emt 0:01:45]} Ne5 {[%emt 0:05:45]} 16. Rac1 {[%emt 0:17:20]} Rd8 {[%emt 0:06:18]} 17. Qd4 {[%emt 0:04:35]} Nfd7 {[%emt 0:07:50]} 18. Kh1 {[%emt 0:05:12]} Nc4 {[%emt 0:05:45]} 19. Bxc4 {[%emt 0:05:39]} bxc4 {[%emt 0:04:02]} 20. Nd2 {[%emt 0:04:23]} Bf6 {[%emt 0:01:20]} 21. Qg4 {[%emt 0:00:15]} Bxb2 {[%emt 0:01:01]} 22. Rb1 {[%emt 0:00:16]} Bxa3 {[%emt 0:01:40]} 23. Bh6 {[%emt 0:00:43]} Bf8 {[%emt 0:03:32]} 24. Rfe1 {[%emt 0:00:38]} Kh8 {[%emt 0:12:33]} 25. Bg5 {[%emt 0:00:50]} Re8 {[%emt 0:03:29]} 26. Nc3 {[%emt 0:01:05]} Bb7 {[%emt 0:03:53]} 27. h4 {[%emt 0:06:10]} e5 {[%emt 0:04:26]} 28. h5 {[%emt 0:00:58]} f6 {[%emt 0:01:21]} 29. Bh4 {[%emt 0:01:14]} Rad8 {[%emt 0:08:27]} 30. Rbd1 {[%emt 0:00:21]} Qc6 {[%emt 0:01:24]} 31. Nf1 {[%emt 0:03:05]} Nc5 {[%emt 0:05:13]} 32. Re2 {[%emt 0:05:04]} Bc8 {[%emt 0:02:56]} 33. Qg3 {[%emt 0:00:29]} Bf5 {[%emt 0:01:18]} 34. Ne3 {[%emt 0:01:16]} Be6 {[%emt 0:01:53]} 35. Nf1 {[%emt 0:00:17]} h6 {[%emt 0:01:14]} 36. Rde1 {[%emt 0:01:13]} Bg8 {[%emt 0:00:28]} 37. Rd1 {[%emt 0:02:39]} Bh7 {[%emt 0:00:59]} 38. Red2 {[%emt 0:00:24]} d4 {[%emt 0:01:09]} 39. Qg4 {[%emt 0:02:09]} Be7 {[%emt 0:01:20]} 40. Nb1 {[%emt 0:00:00]} a5 {[%emt 0:00:00]} 41. Qg3 {[%emt 0:06:45]} c3 {[%emt 0:04:52]} 42. Re2 {[%emt 0:01:04]} Ne6 {[%emt 0:02:36]} 43. Qe1 {[%emt 0:01:41]} Nf4 {[%emt 0:00:42]} 44. Rf2 {[%emt 0:02:49]} Bb4 {[%emt 0:01:09]} 0-1

[Event "ESTCC-65 2025"]
[Site "Swidnica"]
[Date "2025.04.08"]
[Round "4.2"]
[White "Woestmann, Hans-Joachim"]
[Black "Sobocanec, Alojz"]
[Result "1-0"]
[Annotator "RC"]
[ECO "D11"]
[WhiteElo "2029"]
[BlackElo "1792"]
[PlyCount "137"]
[EventDate "2025.04.05"]
[EventType "team-tourn"]
[EventCountry "POL"]
[SourceTitle "playchess.com"]
[Source "ChessBase"]
[SourceQuality "1"]
[WhiteTeam "Germany"]
[BlackTeam "Croatia"]
[WhiteTeamCountry "GER"]
[BlackTeamCountry "CRO"]
[TimeControl "40/5400+30:1800+30"]

1. d4 {[%emt 0:00:30]} d5 {[%emt 0:15:07]} 2. c4 {[%emt 0:00:00]} c6 {[%emt 0:00:04]} 3. Nf3 {[%emt 0:00:00]} e6 {[%emt 0:00:01]} 4. e3 {[%emt 0:01:03]} f5 {[%emt 0:00:05]} 5. Bd3 {[%emt 0:01:04]} Nf6 {[%emt 0:00:05]} 6. O-O {[%emt 0:00:25]} Bd6 {[%emt 0:00:06]} 7. b3 {[%emt 0:00:22]} O-O {[%emt 0:00:05]} 8. Ba3 {[%emt 0:00:56]} Bxa3 {[%emt 0:01:04]} 9. Nxa3 {[%emt 0:00:10]} Nbd7 {[%emt 0:01:36]} 10. b4 {[%emt 0:08:50]} Ne4 {[%emt 0:00:58]} 11. b5 {[%emt 0:01:16]} Qe7 {[%emt 0:00:30]} 12. Qc1 {[%emt 0:06:59]} e5 {[%emt 0:04:13]} 13. bxc6 {[%emt 0:19:25]} bxc6 {[%emt 0:00:20]} 14. cxd5 {[%emt 0:00:10]} cxd5 15. Nb5 {[%emt 0:02:20]} Ba6 {[%emt 0:05:13]} 16. Qc6 {[%emt 0:02:54]} Nb6 {[%emt 0:04:22]} 17. Qc2 Rfc8 {[%emt 0:00:30]} 18. Qb3 {[%emt 0:13:48]} exd4 {[%emt 0:00:49]} 19. exd4 {[%emt 0:02:48]} Nc4 {[%emt 0:00:53]} 20. Rac1 {[%emt 0:07:52]} Rab8 {[%emt 0:01:47]} 21. Bxc4 {[%emt 0:02:38]} dxc4 {[%emt 0:00:17]} 22. Rxc4 {[%emt 0:00:10]} Rxc4 {[%emt 0:01:27]} 23. Qxc4+ Qf7 {[%emt 0:01:07]} 24. Qxf7+ {[%emt 0:00:54]} Kxf7 {[%emt 0:00:05]} 25. Ne5+ {[%emt 0:01:00]} Kg8 {[%emt 0:01:11]} 26. a4 {[%emt 0:02:21]} Bxb5 {[%emt 0:02:05]} 27. axb5 {[%emt 0:00:19]} Rxb5 {[%emt 0:00:11]} 28. Rc1 {[%emt 0:00:55]} h6 {[%emt 0:00:30]} 29. f3 {[%emt 0:00:33]} Nf6 {[%emt 0:02:33]} 30. Nc6 {[%emt 0:06:02]} a6 {[%emt 0:00:49]} 31. Ra1 {[%emt 0:01:02]} Rb6 {[%emt 0:00:26]} 32. Ne7+ {[%emt 0:00:27]} Kf7 {[%emt 0:00:12]} 33. Nxf5 {[%emt 0:00:14]} Nd5 {[%emt 0:00:30]} 34. Ra5 {[%emt 0:05:06]} Nb4 {[%emt 0:01:20]} 35. Kf2 {[%emt 0:01:20]} h5 {[%emt 0:00:37]} 36. Ne3 {[%emt 0:06:31]} Rb5 {[%emt 0:01:05]} 37. Rxb5 {[%emt 0:04:39]} axb5 {[%emt 0:00:04]} 38. Ke2 {[%emt 0:00:46]} Ke6 {[%emt 0:00:42]} 39. Kd2 {[%emt 0:00:35]} Nd5 {[%emt 0:01:16]} 40. Nd1 {[%emt 0:00:00]} b4 {[%emt 0:00:00]} 41. g3 {[%emt 0:02:03]} g5 {[%emt 0:08:34]} 42. Kd3 {[%emt 0:00:52]} Kd6 {[%emt 0:00:16]} 43. Nf2 {[%emt 0:04:18]} Ke6 44. Ne4 Kf5 {[%emt 0:03:02]} 45. Nc5 {[%emt 0:05:01]} Nb6 {[%emt 0:00:52]} 46. Ne4 {[%emt 0:06:13]} h4 {[%emt 0:00:56]} 47. Nd2 {[%emt 0:01:31]} Ke6 {[%emt 0:03:32]} 48. Ke4 {[%emt 0:01:25]} Nd5 {[%emt 0:00:28]} 49. Nc4 {[%emt 0:00:55]} hxg3 {[%emt 0:00:57]} 50. hxg3 {[%emt 0:00:02]} Nf6+ {[%emt 0:01:01]} 51. Kd3 {[%emt 0:01:03]} g4 {[%emt 0:00:42]} 52. fxg4 {[%emt 0:01:37]} Nxg4 {[%emt 0:00:05]} 53. Nb6 {[%emt 0:01:07]} Nf2+ {[%emt 0:01:06]} 54. Ke3 {[%emt 0:04:13]} Nd1+ {[%emt 0:00:40]} 55. Ke4 {[%emt 0:00:33]} Nf2+ {[%emt 0:01:11]} 56. Ke3 {[%emt 0:00:56]} Nd1+ {[%emt 0:00:34]} 57. Ke2 {[%emt 0:00:36]} Nc3+ {[%emt 0:01:18]} 58. Kd3 {[%emt 0:00:13]} Nd5 {[%emt 0:01:02]} 59. Nxd5 {[%emt 0:05:58]} Kxd5 {[%emt 0:00:02]} 60. g4 {[%emt 0:00:13]} b3 {[%emt 0:00:03]} 61. g5 {[%emt 0:00:19]} Ke6 {[%emt 0:00:08]} 62. Kc3 {[%emt 0:00:13]} Kf5 {[%emt 0:00:04]} 63. Kxb3 {[%emt 0:00:12]} Kxg5 {[%emt 0:00:07]} 64. Kc4 {[%emt 0:06:33]} Kf6 {[%emt 1:11:35]} 65. Kd5 {[%emt 0:00:00]} Ke7 {[%emt 0:00:00]} 66. Kc6 {[%emt 0:00:00]} Kd8 67. d5 Kc8 {[%emt 0:00:00]} 68. d6 {[%emt 0:00:00]} Kd8 69. d7 1-0

[Event "ESTCC-65 2025"]
[Site "Swidnica"]
[Date "2025.04.08"]
[Round "4.3"]
[White "Novak, Stjepan"]
[Black "Lange, Torsten"]
[Result "1-0"]
[Annotator "NA RC"]
[ECO "C02"]
[WhiteElo "1671"]
[BlackElo "2025"]
[PlyCount "90"]
[EventDate "2025.04.05"]
[EventType "team-tourn"]
[EventCountry "POL"]
[SourceTitle "playchess.com"]
[Source "ChessBase"]
[SourceQuality "1"]
[WhiteTeam "Croatia"]
[BlackTeam "Germany"]
[WhiteTeamCountry "CRO"]
[BlackTeamCountry "GER"]
[TimeControl "40/5400+30:1800+30"]

1. e4 {[%emt 0:00:08]} e6 {[%emt 0:00:08]} 2. d4 {[%emt 0:00:21]} d5 {[%emt 0:00:06]} 3. e5 {[%emt 0:00:20]} c5 {[%emt 0:00:08]} 4. b3 {[%emt 0:00:32]} cxd4 {[%emt 0:01:01]} 5. Qxd4 {[%emt 0:00:08]} Nc6 {[%emt 0:00:44]} 6. Qf4 {[%emt 0:03:44]} Qc7 {[%emt 0:07:22]} 7. Nf3 {[%emt 0:02:11]} Nge7 {[%emt 0:12:25]} 8. Bd3 {[%emt 0:03:02]} Ng6 {[%emt 0:00:54]} 9. Bxg6 {[%emt 0:00:59]} hxg6 {[%emt 0:00:08]} 10. a3 {[%emt 0:03:11]} Be7 {[%emt 0:07:00]} 11. Ra2 {[%emt 0:02:31]} Rh5 {[%emt 0:10:44]} 12. O-O {[%emt 0:00:50]} Nxe5 {[%emt 0:02:41]} 13. Nxe5 {[%emt 0:00:28]} Qxe5 {[%emt 0:00:29]} 14. Qxe5 {[%emt 0:00:06]} Rxe5 {[%emt 0:00:07]} 15. Bb2 {[%emt 0:00:36]} Rh5 {[%emt 0:00:22]} 16. Nd2 {[%emt 0:00:42]} Bd7 {[%emt 0:01:36]} 17. Nf3 {[%emt 0:01:17]} Rc8 {[%emt 0:01:36]} 18. Bd4 {[%emt 0:01:28]} b6 {[%emt 0:02:25]} 19. a4 {[%emt 0:00:53]} f6 {[%emt 0:02:53]} 20. Rc1 {[%emt 0:01:49]} e5 {[%emt 0:01:25]} 21. Be3 {[%emt 0:01:08]} d4 {[%emt 0:02:44]} 22. Bd2 {[%emt 0:00:14]} Be6 {[%emt 0:01:46]} 23. Raa1 {[%emt 0:05:33]} a5 {[%emt 0:05:50]} 24. Ne1 {[%emt 0:01:04]} e4 {[%emt 0:01:38]} 25. c4 {[%emt 0:02:35]} dxc3 {[%emt 0:00:41]} 26. Rxc3 {[%emt 0:00:08]} Rxc3 {[%emt 0:00:41]} 27. Bxc3 {[%emt 0:00:01]} Bxb3 {[%emt 0:03:02]} 28. Rb1 {[%emt 0:00:39]} Bxa4 {[%emt 0:00:33]} 29. Rxb6 {[%emt 0:00:05]} Rc5 {[%emt 0:02:54]} 30. Bd2 {[%emt 0:01:23]} Rd5 {[%emt 0:01:53]} 31. Rb2 {[%emt 0:01:22]} Bc6 {[%emt 0:02:09]} 32. g3 {[%emt 0:04:52]} a4 {[%emt 0:00:45]} 33. Be3 {[%emt 0:00:58]} Rd1 {[%emt 0:01:07]} 34. Kf1 {[%emt 0:00:45]} a3 {[%emt 0:00:33]} 35. Rb8+ {[%emt 0:00:33]} Kd7 {[%emt 0:01:02]} 36. Ke2 {[%emt 0:00:28]} a2 {[%emt 0:01:20]} 37. Nc2 {[%emt 0:00:16]} Rb1 {[%emt 0:00:26]} 38. Rb6 {[%emt 0:00:27]} Bd8 {[%emt 0:01:52]} 39. Rxc6 {[%emt 0:01:39]} Kxc6 {[%emt 0:00:15]} 40. Bd4 {[%emt 0:00:00]} Bb6 {[%emt 0:00:00]} 41. Bc3 {[%emt 0:00:38]} Kd5 {[%emt 0:04:41]} 42. Ba1 {[%emt 0:00:34]} Rxa1 {[%emt 0:01:03]} 43. Nxa1 {[%emt 0:00:09]} Bd4 {[%emt 0:00:11]} 44. Nc2 {[%emt 0:00:11]} a1=Q 45. Nxa1 {[%emt 0:00:08]} Bxa1 {[%emt 0:00:35]} 1-0

[Event "ESTCC-65 2025"]
[Site "Swidnica"]
[Date "2025.04.08"]
[Round "4.4"]
[White "Becker, Norbert"]
[Black "Petanjek, Zvonko"]
[Result "1-0"]
[Annotator "NA RC"]
[ECO "C25"]
[WhiteElo "2032"]
[BlackElo "1732"]
[PlyCount "89"]
[EventDate "2025.04.05"]
[EventType "team-tourn"]
[EventCountry "POL"]
[SourceTitle "playchess.com"]
[Source "ChessBase"]
[SourceQuality "1"]
[WhiteTeam "Germany"]
[BlackTeam "Croatia"]
[WhiteTeamCountry "GER"]
[BlackTeamCountry "CRO"]
[TimeControl "40/5400+30:1800+30"]

1. e4 {[%emt 0:00:06]} e5 {[%emt 0:00:08]} 2. Nc3 {[%emt 0:00:12]} Nc6 {[%emt 0:00:30]} 3. Bc4 {[%emt 0:02:34]} Bc5 {[%emt 0:00:20]} 4. d3 {[%emt 0:01:36]} h6 {[%emt 0:00:42]} 5. Nge2 {[%emt 0:01:25]} Nf6 {[%emt 0:00:18]} 6. O-O {[%emt 0:03:08]} d6 {[%emt 0:00:53]} 7. Na4 {[%emt 0:04:54]} Bb6 {[%emt 0:00:18]} 8. Nxb6 {[%emt 0:03:53]} axb6 {[%emt 0:00:10]} 9. a3 {[%emt 0:02:44]} Be6 {[%emt 0:00:23]} 10. Bxe6 {[%emt 0:01:07]} fxe6 {[%emt 0:00:11]} 11. f4 {[%emt 0:01:46]} O-O {[%emt 0:00:17]} 12. fxe5 {[%emt 0:02:43]} Nxe5 {[%emt 0:00:09]} 13. Nf4 {[%emt 0:01:55]} Qe8 {[%emt 0:00:29]} 14. Qe2 {[%emt 0:10:00]} Ng6 {[%emt 0:00:24]} 15. Bd2 {[%emt 0:03:26]} Nxf4 {[%emt 0:00:11]} 16. Rxf4 {[%emt 0:01:36]} e5 {[%emt 0:00:08]} 17. Rf5 {[%emt 0:02:29]} Nh7 {[%emt 0:00:20]} 18. Raf1 {[%emt 0:07:46]} Rxf5 {[%emt 0:02:43]} 19. exf5 {[%emt 0:01:34]} Qe7 {[%emt 0:00:55]} 20. Qg4 {[%emt 0:06:28]} Kh8 {[%emt 0:00:06]} 21. Qg6 {[%emt 0:07:52]} Qe8 {[%emt 0:00:26]} 22. Qxe8+ {[%emt 0:04:15]} Rxe8 {[%emt 0:00:02]} 23. g4 {[%emt 0:05:24]} Rf8 {[%emt 0:01:19]} 24. Kg2 {[%emt 0:01:15]} Kg8 {[%emt 0:00:14]} 25. Kg3 {[%emt 0:03:56]} Rf7 {[%emt 0:01:02]} 26. h4 {[%emt 0:03:18]} g5 {[%emt 0:02:14]} 27. hxg5 {[%emt 0:01:32]} hxg5 {[%emt 0:00:09]} 28. Rh1 {[%emt 0:02:44]} Kg7 {[%emt 0:00:13]} 29. Rh5 {[%emt 0:01:14]} Rf6 {[%emt 0:01:24]} 30. Bxg5 {[%emt 0:01:52]} Nxg5 {[%emt 0:00:11]} 31. Rxg5+ {[%emt 0:00:10]} Kf7 {[%emt 0:00:04]} 32. Rh5 {[%emt 0:02:22]} Kg7 {[%emt 0:00:10]} 33. Rh2 {[%emt 0:01:10]} Rh6 {[%emt 0:01:31]} 34. Rxh6 {[%emt 0:00:36]} Kxh6 {[%emt 0:00:06]} 35. f6 {[%emt 0:00:32]} d5 {[%emt 0:00:38]} 36. g5+ {[%emt 0:02:19]} Kg6 {[%emt 0:00:12]} 37. a4 {[%emt 0:00:25]} c6 {[%emt 0:00:15]} 38. Kg4 {[%emt 0:00:55]} b5 {[%emt 0:01:08]} 39. axb5 {[%emt 0:00:37]} cxb5 {[%emt 0:00:01]} 40. f7 {[%emt 0:00:00]} Kxf7 {[%emt 0:00:00]} 41. Kf5 {[%emt 0:03:14]} e4 {[%emt 0:00:24]} 42. dxe4 {[%emt 0:00:17]} dxe4 {[%emt 0:00:09]} 43. Kxe4 {[%emt 0:00:12]} Kg6 {[%emt 0:00:05]} 44. Kd5 {[%emt 0:01:18]} Kxg5 {[%emt 0:00:22]} 45. Kc5 {[%emt 0:00:09]} 1-0

[Event "ESTCC-65 2025"]
[Site "Swidnica"]
[Date "2025.04.08"]
[Round "4.5"]
[White "Quinn, John M"]
[Black "Janocha, Wieslaw"]
[Result "0-1"]
[Annotator "RC"]
[ECO "D97"]
[WhiteElo "2073"]
[BlackElo "2186"]
[PlyCount "70"]
[EventDate "2025.04.05"]
[EventType "team-tourn"]
[EventCountry "POL"]
[SourceTitle "playchess.com"]
[Source "ChessBase"]
[SourceQuality "1"]
[WhiteTeam "England"]
[BlackTeam "Poland"]
[WhiteTeamCountry "ENG"]
[BlackTeamCountry "POL"]
[TimeControl "40/5400+30:1800+30"]

1. d4 {[%emt 0:00:03]} Nf6 {[%emt 0:00:16]} 2. c4 {[%emt 0:00:06]} g6 {[%emt 0:00:10]} 3. Nc3 {[%emt 0:00:06]} d5 {[%emt 0:00:08]} 4. Nf3 {[%emt 0:00:31]} Bg7 {[%emt 0:00:13]} 5. Qb3 {[%emt 0:00:08]} dxc4 {[%emt 0:00:40]} 6. Qxc4 {[%emt 0:00:05]} O-O {[%emt 0:00:10]} 7. e4 {[%emt 0:00:03]} Na6 {[%emt 0:00:18]} 8. Be2 {[%emt 0:02:46]} c5 {[%emt 0:00:11]} 9. d5 {[%emt 0:00:26]} e6 {[%emt 0:00:18]} 10. O-O {[%emt 0:01:01]} exd5 {[%emt 0:00:16]} 11. exd5 {[%emt 0:00:06]} Bf5 {[%emt 0:01:34]} 12. Bg5 {[%emt 0:08:21]} Re8 {[%emt 0:05:55]} 13. Qh4 {[%emt 0:07:33]} Qb6 {[%emt 0:06:00]} 14. Bb5 {[%emt 0:03:36]} Bd7 {[%emt 0:08:20]} 15. Bc4 {[%emt 0:04:26]} Ng4 {[%emt 0:06:10]} 16. h3 {[%emt 0:09:52]} Qxb2 {[%emt 0:15:03]} 17. hxg4 {[%emt 0:02:07]} Qxc3 {[%emt 0:00:11]} 18. Rac1 {[%emt 0:00:32]} Qb4 {[%emt 0:06:11]} 19. Bd2 {[%emt 0:10:29]} Qa3 {[%emt 0:05:35]} 20. Bh6 {[%emt 0:06:52]} b5 {[%emt 0:02:25]} 21. Bxg7 {[%emt 0:03:33]} Kxg7 {[%emt 0:02:31]} 22. Ng5 {[%emt 0:01:27]} h6 {[%emt 0:00:48]} 23. Nxf7 {[%emt 0:01:38]} Kxf7 {[%emt 0:00:23]} 24. Qxh6 {[%emt 0:00:43]} Qb2 {[%emt 0:00:16]} 25. Bd3 {[%emt 0:03:49]} Qg7 {[%emt 0:00:26]} 26. Qh2 {[%emt 0:01:25]} Re7 {[%emt 0:17:42]} 27. g5 {[%emt 0:05:04]} Nb4 {[%emt 0:05:26]} 28. Bb1 {[%emt 0:08:31]} c4 {[%emt 0:00:52]} 29. Qg3 {[%emt 0:03:18]} Rae8 {[%emt 0:01:45]} 30. Qd6 {[%emt 0:06:03]} Nd3 {[%emt 0:02:45]} 31. Bxd3 {[%emt 0:00:40]} cxd3 {[%emt 0:00:02]} 32. Rc7 {[%emt 0:00:09]} Kg8 {[%emt 0:00:07]} 33. Qb4 {[%emt 0:02:24]} Qe5 {[%emt 0:01:04]} 34. d6 {[%emt 0:00:54]} Rh7 {[%emt 0:00:48]} 35. g3 {[%emt 0:00:53]} Qd5 {[%emt 0:00:46]} 0-1